bitfinex-derivatives/quotes_ETHF0:USTF0_20210705
["timestamp","ask_amount","ask_price","bid_price","bid_amount"]
[1625509704071,2.20527,2233.6,2230.8,5.0]
[1625509704173,2.20527,2233.6,2229.3,16.81124296]
[1625509704875,2.20527,2233.6,2230.0,1.0]
[1625509705175,2.20527,2233.6,2230.2,5.0]
[1625509705277,2.20527,2233.6,2230.3,1.0]
[1625509705827,2.20527,2232.5,2232.4,2.20527]
[1625509706329,2.3745,2233.0,2232.4,2.20527]
[1625509706728,2.34079962,2233.0,2232.4,2.20527]
[1625509707328,3.1806,2234.0,2232.4,2.20527]
[1625509707430,5.0,2234.1,2232.4,2.20527]
[1625509707529,62.2022,2234.5,2232.4,2.20527]
[1625509707731,62.2022,2234.5,2232.1,2.20527]
[1625509707930,2.20527,2232.2,2232.1,2.20527]
[1625509708516,5.63277,2232.2,2232.1,2.20527]
[1625509708982,5.63277,2232.2,2229.9,1.0]
[1625509709082,5.63277,2232.2,2229.9,13.7537]
[1625509709590,5.63277,2232.2,2230.0,16.39808]
[1625509709887,5.63277,2232.2,2231.8,2.20527]
[1625509709987,2.20527,2232.2,2231.8,2.20527]
[1625509710389,2.20527,2232.2,2230.1,1.0]
[1625509710488,4.81237,2232.2,2229.4,37.6348]
[1625509710788,2.6071,2232.2,2230.0,5.0]
[1625509710892,2.6071,2232.2,2230.0,5.9049]
[1625509710992,0.8945,2235.2,2230.0,5.9049]
[1625509711091,62.2022,2234.5,2230.1,1.0]
[1625509711219,13.9459,2234.4,2230.1,1.0]
[1625509711393,17.2974,2234.4,2230.1,1.0]
[1625509711500,22.0564,2234.4,2230.2,16.174941]
[1625509711595,22.0564,2234.4,2230.3,1.0]
[1625509711792,6.0,2234.3,2230.3,1.0]
[1625509711894,6.0,2234.3,2231.5,2.20527]
[1625509711895,2.20527,2231.6,2231.5,2.20527]
[1625509712192,2.20527,2231.6,2231.3,2.20527]
[1625509713897,1.0,2232.8,2231.5,2.20527]
[1625509714157,1.1,2234.3,2231.5,5.60797]
[1625509714173,18.7049,2234.4,2231.5,6.60797]
[1625509715062,18.7049,2234.4,2231.6,16.313341]
[1625509715159,19.7049,2234.4,2231.6,17.313341]
[1625509715461,13.9459,2234.4,2231.6,16.313341]
[1625509715558,13.9459,2234.4,2231.6,21.313341]
[1625509715764,13.9459,2234.4,2231.6,16.313341]
[1625509715962,2.20527,2233.7,2233.1,2.20527]
[1625509716063,2.20527,2233.7,2233.1,4.62407]
[1625509717631,2.20527,2233.7,2233.1,2.20527]
[1625509717737,4.68027,2233.7,2233.1,2.20527]
[1625509717846,4.68027,2233.7,2231.7,1.0]
[1625509717925,2.20527,2232.7,2232.6,2.20527]
[1625509718124,1.0,2234.2,2232.6,2.20527]
[1625509718223,51.7689,2234.3,2232.6,4.38217]
[1625509718772,56.7689,2234.3,2232.6,4.38217]
[1625509718874,51.7689,2234.3,2232.6,4.38217]
[1625509719483,56.5279,2234.3,2232.6,4.38217]
[1625509719587,5.0,2234.2,2232.6,4.38217]
[1625509719938,2.20527,2233.2,2233.1,2.20527]
[1625509720843,2.20527,2233.2,2232.6,2.20527]
[1625509720977,5.13807,2233.2,2227.6,1.29418405]
[1625509721058,11.13807,2233.2,2227.6,1.29418405]
[1625509721145,11.13807,2233.2,2228.9,1.1]
[1625509721441,6.13807,2233.2,2228.9,1.1]
[1625509721639,6.13807,2233.2,2230.0,16.15306]
[1625509721744,6.13807,2233.2,2230.0,21.15306]
[1625509721841,6.13807,2233.2,2230.0,24.15366]
[1625509721942,2.20527,2232.5,2232.4,2.20527]
[1625509722949,1.0,2234.1,2232.4,2.20527]
[1625509723101,4.759,2233.9,2232.4,4.98197]
[1625509723445,1.0,2235.0,2232.4,4.98197]
[1625509723541,4.759,2235.3,2232.4,4.98197]
[1625509723844,5.0,2235.2,2232.4,4.98197]
[1625509723944,2.20527,2233.5,2233.4,2.20527]
[1625509724144,5.0,2235.2,2233.4,4.83257]
[1625509724651,4.759,2235.3,2233.4,4.83257]
[1625509724948,5.0,2235.2,2233.4,4.83257]
[1625509725053,4.759,2235.3,2233.4,4.83257]
[1625509725449,15.2283,2235.5,2233.4,4.83257]
[1625509725998,4.41054,2233.5,2233.4,2.20527]
[1625509728064,7.7252,2234.8,2233.4,2.20527]
[1625509728173,4.759,2234.8,2233.4,2.20527]
[1625509728266,4.759,2234.8,2233.4,4.36547]
[1625509728464,5.759,2235.9,2233.4,4.36547]
[1625509728564,4.759,2235.9,2233.4,4.36547]
[1625509729317,9.759,2235.9,2233.4,4.36547]
[1625509729530,5.0,2235.4,2233.4,4.36547]
[1625509729617,5.6538,2235.9,2233.4,4.36547]
[1625509729719,4.759,2235.9,2233.4,4.36547]
[1625509730021,2.20527,2234.1,2234.0,2.20527]
[1625509730519,2.20527,2234.1,2233.4,2.20527]
[1625509731276,2.20527,2234.1,2231.8,15.9151]
[1625509731374,2.20527,2234.1,2231.8,14.9151]
[1625509731891,1.0,2234.7,2231.8,14.9151]
[1625509731977,4.759,2234.8,2231.9,16.369682]
[1625509732153,4.759,2234.8,2234.0,4.41054]
[1625509732211,4.759,2234.8,2234.0,7.12944]
[1625509732409,16.444,2236.4,2234.0,7.12944]
[1625509732479,4.759,2236.4,2234.0,7.12944]
[1625509732924,14.8693,2236.9,2234.0,7.12944]
[1625509733027,14.8693,2236.9,2234.0,12.12944]
[1625509733124,14.8693,2236.9,2234.0,7.12944]
[1625509733226,14.8165,2237.4,2234.0,7.12944]
[1625509733425,1.0,2237.3,2234.1,5.0]
[1625509733526,16.1486,2238.7,2234.1,21.109145]
[1625509733626,15.2592,2238.7,2234.1,21.109145]
[1625509733724,15.2592,2238.7,2234.2,1.0]
[1625509733827,15.2592,2238.7,2234.7,37.6512]
[1625509733926,15.2592,2238.7,2234.8,6.0]
[1625509734025,2.20527,2237.9,2237.5,2.20527]
[1625509734124,2.20527,2237.9,2237.5,5.17917]
[1625509734227,2.20527,2237.9,2237.5,2.9739]
[1625509734570,2.20527,2237.9,2234.8,19.928752]
[1625509734638,2.20527,2237.9,2234.8,2.6196]
[1625509735137,5.0,2237.8,2234.8,2.6196]
[1625509735237,5.0,2237.8,2234.7,37.6512]
[1625509735335,2.20527,2237.9,2234.7,37.6512]
[1625509735439,2.20527,2237.9,2234.7,40.9525]
[1625509735536,2.20527,2237.9,2234.8,5.0]
[1625509735737,2.20527,2237.9,2234.7,40.9525]
[1625509735936,2.20527,2237.9,2234.9,16.252992]
[1625509736037,1.0,2238.6,2236.5,2.20527]
[1625509736038,2.20527,2236.6,2236.5,2.20527]
[1625509736890,1.0,2238.6,2236.5,2.20527]
[1625509736989,15.2592,2238.7,2236.5,2.20527]
[1625509737190,5.0,2238.6,2236.5,2.20527]
[1625509737288,5.0,2238.6,2236.0,2.6692]
[1625509737690,16.139245,2238.5,2236.0,2.6692]
[1625509737793,5.0,2238.4,2236.0,2.6692]
[1625509737890,5.0,2238.4,2234.8,1.0]
[1625509738012,2.20527,2235.2,2235.1,2.20527]
[1625509738096,2.20527,2235.2,2231.8,4.1518]
[1625509738490,2.20527,2235.2,2231.8,3.0518]
[1625509738592,2.20527,2235.2,2231.9,0.9025]
[1625509738689,2.3837,2236.3,2231.9,0.9025]
[1625509738891,1.0,2236.2,2231.9,5.9025]
[1625509739238,1.0,2236.2,2232.0,17.359386]
[1625509739305,1.0,2236.2,2232.1,5.0]
[1625509739416,1.0,2236.2,2232.2,1.0]
[1625509739608,15.3582,2236.2,2232.2,1.0]
[1625509739696,15.3582,2236.2,2232.2,17.159752]
[1625509739697,5.0,2236.1,2232.2,17.159752]
[1625509739796,1.0,2236.0,2232.2,17.159752]
[1625509739997,1.0,2236.0,2234.2,2.20527]
[1625509740093,2.20527,2234.4,2234.2,2.20527]
[1625509740843,2.20527,2234.4,2234.0,2.20527]
[1625509742049,2.20527,2234.1,2233.1,2.20527]
[1625509744097,4.41054,2233.2,2233.1,2.20527]
[1625509745205,4.41054,2233.2,2232.9,2.20527]
[1625509745402,4.41054,2233.2,2231.0,1.0]
[1625509745504,4.41054,2233.2,2229.3,1.1]
[1625509745605,4.41054,2233.2,2229.6,1.0]
[1625509746104,2.20527,2232.3,2232.2,2.20527]
[1625509747959,2.20527,2232.3,2230.2,1.0]
[1625509748061,2.20527,2230.6,2230.5,2.20527]
[1625509748359,2.20527,2230.6,2230.3,2.20527]
[1625509748460,1.14314917,2230.6,2230.3,2.20527]
[1625509748860,1.0,2232.6,2230.3,2.20527]
[1625509748968,14.0622,2233.2,2230.3,2.20527]
[1625509749063,14.0622,2233.2,2230.3,9.81087]
[1625509749161,14.0622,2233.2,2230.3,4.81087]
[1625509749363,52.7235,2233.3,2230.4,16.237839]
[1625509749660,52.7235,2233.3,2230.3,4.81087]
[1625509750084,2.20527,2231.8,2231.7,2.20527]
[1625509752136,4.41054,2231.8,2231.7,2.20527]
[1625509752435,4.41054,2231.8,2231.7,2.13137]
[1625509753794,4.41054,2231.8,2230.3,2.6056]
[1625509754138,2.20527,2230.6,2230.5,2.20527]
[1625509754242,6.0,2232.9,2230.5,2.20527]
[1625509754342,5.0,2232.9,2230.5,2.20527]
[1625509755191,0.8833,2233.2,2230.5,2.20527]
[1625509755192,5.8833,2233.2,2230.5,2.20527]
[1625509755291,5.0,2233.2,2230.5,2.20527]
[1625509755940,16.155246,2233.1,2230.5,2.20527]
[1625509756039,5.0,2233.0,2230.5,2.20527]
[1625509756139,4.41054,2230.6,2230.5,2.20527]
[1625509757644,7.34474,2230.6,2230.5,2.20527]
[1625509757745,7.34474,2230.6,2228.5,1.0]
[1625509757849,7.34474,2230.6,2228.9,0.8991]
[1625509757945,7.34474,2230.6,2228.4,15.1257]
[1625509758145,5.13947,2230.6,2230.1,2.20527]
[1625509758244,5.13947,2230.6,2230.1,5.23427]
[1625509759110,2.20527,2230.6,2230.1,5.23427]
[1625509759197,2.20527,2230.6,2230.1,3.029]
[1625509759296,2.20527,2230.6,2228.8,2.6711]
[1625509760201,1.0,2231.6,2229.5,2.20527]
[1625509760305,13.9856,2231.9,2229.5,5.11427]
[1625509760603,0.8823,2233.2,2229.5,5.11427]
[1625509760950,15.8503,2233.2,2229.5,5.11427]
[1625509761299,5.0,2232.5,2229.5,5.11427]
[1625509761401,5.0,2232.3,2229.5,5.11427]
[1625509762156,2.20527,2229.7,2229.5,5.11427]
[1625509764262,2.20527,2229.6,2229.5,5.11427]
[1625509764623,0.9033,2231.5,2229.5,5.11427]
[1625509764730,14.7015,2231.6,2229.5,5.11427]
[1625509764930,0.8879,2232.7,2229.5,5.11427]
[1625509765230,0.8879,2232.7,2229.6,16.208411]
[1625509766118,19.7558,2232.4,2229.5,5.11427]
[1625509766191,2.20527,2230.7,2230.6,2.20527]
[1625509767147,2.20527,2230.7,2228.8,2.6711]
[1625509767349,2.20527,2230.7,2228.0,0.8925]
[1625509768098,2.20527,2230.7,2227.4,1.24215444]
[1625509768194,2.20527,2229.8,2229.7,2.20527]
[1625509770259,4.41054,2229.8,2229.7,2.20527]
[1625509772465,46.8312,2230.9,2229.7,2.20527]
[1625509772552,0.8858,2231.5,2229.7,4.45677]
[1625509773254,39.4562,2231.0,2229.7,4.45677]
[1625509773705,40.3566,2231.0,2229.7,4.45677]
[1625509774006,45.3566,2231.0,2229.7,4.45677]
[1625509774208,2.20527,2229.8,2229.7,4.45677]
[1625509774509,2.20527,2229.8,2229.7,4.37527]
[1625509774707,2.20527,2229.8,2229.7,4.30607]
[1625509774807,2.20527,2229.8,2229.7,4.21957]
[1625509774910,2.20527,2229.8,2229.7,2.2515]
[1625509775811,39.4562,2231.0,2229.7,2.2515]
[1625509776261,2.20527,2230.1,2230.0,2.20527]
[1625509776612,2.20527,2230.1,2230.0,2.15027]
[1625509776713,2.20527,2230.1,2230.0,2.09837]
[1625509776813,2.20527,2230.1,2230.0,2.04827]
[1625509777012,2.20527,2230.1,2230.0,1.91677]
[1625509778315,4.41054,2230.1,2230.0,1.91677]
[1625509780574,39.4562,2231.0,2230.0,1.91677]
[1625509780776,14.2813,2231.9,2230.0,1.91677]
[1625509781076,14.7558,2232.4,2230.0,1.91677]
[1625509781867,5.0,2232.3,2230.0,1.91677]
[1625509782067,7.4964,2232.3,2230.0,1.91677]
[1625509782348,2.20527,2230.8,2230.0,1.91677]
[1625509784297,2.20527,2230.5,2230.4,2.20527]
[1625509784398,2.20527,2230.5,2230.4,5.04107]
[1625509785001,2.20527,2230.5,2230.4,2.8358]
[1625509785452,2.20527,2230.5,2230.4,2.7713]
[1625509785857,2.20527,2230.8,2230.4,2.7713]
[1625509786358,2.20527,2230.5,2230.4,4.97657]
[1625509788714,2.20527,2230.5,2230.4,4.87967]
[1625509788913,2.20527,2230.5,2230.4,4.79317]
[1625509789066,2.20527,2230.5,2230.4,2.5879]
[1625509789263,2.20527,2230.5,2230.0,1.91677]
[1625509790319,2.20527,2230.1,2230.0,1.91677]
[1625509795709,4.35487,2230.1,2230.0,1.91677]
[1625509796300,4.35487,2230.1,2228.4,16.1257]
[1625509796397,2.20527,2229.5,2229.4,2.20527]
[1625509797453,2.20527,2230.1,2229.4,2.20527]
[1625509798368,2.20527,2230.1,2229.8,2.20527]
[1625509799507,2.20527,2230.1,2229.4,2.20527]
[1625509799611,5.21217,2230.1,2229.4,2.20527]
[1625509800359,2.20527,2229.5,2229.4,2.20527]
[1625509801136,2.20527,2230.1,2229.4,2.20527]
[1625509801137,1.8999,2231.3,2229.4,2.20527]
[1625509801210,5.0,2231.7,2229.4,4.48187]
[1625509801318,45.0977,2231.6,2229.4,4.48187]
[1625509801423,40.0977,2231.6,2229.4,4.48187]
[1625509801810,5.0,2231.5,2229.4,4.48187]
[1625509801911,8.3604,2231.5,2229.4,4.48187]
[1625509802112,8.3604,2231.5,2229.4,5.36757]
[1625509802212,8.3604,2231.5,2229.4,3.09097]
[1625509802311,8.3604,2231.5,2229.4,2.20527]
[1625509802424,2.20527,2230.0,2229.8,2.20527]
[1625509803314,2.20527,2230.0,2229.4,2.20527]
[1625509803664,2.20527,2230.0,2228.4,15.1257]
[1625509803967,7.20527,2230.0,2228.4,15.1257]
[1625509804065,7.20527,2230.0,2227.2,1.24854796]
[1625509804264,7.20527,2230.0,2227.3,0.22846962]
[1625509804367,2.20527,2228.2,2227.8,2.20527]
[1625509804469,5.68497,2228.2,2227.8,2.20527]
[1625509806119,5.68497,2228.2,2226.8,14.5165]
[1625509806418,2.20527,2227.6,2227.3,2.20527]
[1625509806520,4.41647,2227.6,2227.3,2.20527]
[1625509807121,4.41647,2227.6,2227.3,2.15087]
[1625509807829,4.41647,2227.6,2227.3,2.07377]
[1625509807979,4.41647,2227.6,2226.8,14.5165]
[1625509808126,4.41647,2227.6,2225.5,1.0]
[1625509808227,4.41647,2227.6,2225.3,0.8959]
[1625509808326,4.41647,2227.6,2225.1,1.25812647]
[1625509808427,2.20527,2226.7,2226.5,2.20527]
[1625509808529,4.97147,2226.7,2226.5,2.20527]
[1625509808806,3.90757511,2226.7,2226.5,2.20527]
[1625509809850,3.90757511,2226.7,2224.8,1.0]
[1625509809966,3.90757511,2226.7,2224.7,15.2542]
[1625509810149,3.90757511,2226.7,2224.8,0.23080172]
[1625509810466,2.20527,2226.0,2225.9,2.20527]
[1625509810549,4.41457,2226.0,2225.9,2.43616522]
[1625509810956,4.41457,2226.0,2225.9,2.20527]
[1625509811056,4.41457,2226.0,2224.7,15.2542]
[1625509811356,4.41457,2226.0,2224.8,0.23158207]
[1625509812084,1.0,2227.2,2224.8,0.23158207]
[1625509812159,0.8953,2227.3,2224.8,3.72918207]
[1625509812258,1.0,2228.3,2224.8,3.72918207]
[1625509812457,2.20527,2226.3,2226.0,2.20527]
[1625509812557,2.18798171,2230.5,2226.0,4.88107]
[1625509812765,16.0374,2229.3,2226.0,4.88107]
[1625509812874,16.0374,2229.3,2226.0,5.77177]
[1625509812974,30.2721,2229.3,2226.0,5.77177]
[1625509813062,30.2721,2229.3,2226.1,0.22977066]
[1625509813969,35.2721,2229.3,2226.1,0.22977066]
[1625509814268,30.2721,2229.3,2226.1,0.22977066]
[1625509814469,2.20527,2227.4,2227.1,2.20527]
[1625509814568,5.21337,2227.4,2227.1,2.20527]
[1625509815268,5.21337,2227.4,2226.0,13.8675]
[1625509816521,2.20527,2226.1,2225.6,2.20527]
[1625509816622,4.51327,2226.1,2225.6,2.20527]
[1625509817473,2.308,2226.1,2225.6,2.20527]
[1625509817774,3.0081,2227.4,2225.6,2.20527]
[1625509818524,3.0081,2227.4,2226.4,2.20527]
[1625509818525,2.20527,2226.8,2226.4,2.20527]
[1625509820538,2.20527,2226.5,2226.4,2.20527]
[1625509823904,1.14118549,2226.5,2226.4,2.20527]
[1625509824662,47.0842,2227.7,2226.4,2.20527]
[1625509826565,2.20527,2226.9,2226.8,2.20527]
[1625509828721,1.8904,2228.5,2226.8,2.20527]
[1625509828820,1.1,2230.4,2226.8,4.46357]
[1625509828919,1.1,2230.4,2226.8,2.2583]
[1625509828920,1.0,2229.2,2226.8,2.2583]
[1625509829019,1.1,2230.4,2226.8,2.2583]
[1625509829122,5.0,2229.2,2226.8,2.2583]
[1625509829218,8.2232,2229.2,2226.8,2.2583]
[1625509829471,24.382165,2229.2,2226.8,2.2583]
[1625509829571,1.15,2228.8,2226.8,2.2583]
[1625509829874,16.295956,2228.7,2226.4,1.0]
[1625509829972,5.0,2228.6,2225.8,15.2737]
[1625509830071,6.8859,2228.6,2225.8,15.2737]
[1625509830222,6.8859,2228.6,2225.8,16.2737]
[1625509830321,16.413505,2228.5,2225.8,16.2737]
[1625509830421,17.413505,2228.5,2225.8,15.2737]
[1625509830522,2.20527,2226.4,2226.3,2.20527]
[1625509831072,2.3265,2226.9,2226.3,2.20527]
[1625509831823,2.3265,2226.9,2226.0,2.20527]
[1625509832025,2.3265,2226.9,2225.8,15.2737]
[1625509832525,2.20527,2226.0,2225.9,2.20527]
[1625509832727,3.4117,2226.1,2225.9,2.20527]
[1625509833826,14.0089,2227.7,2225.9,2.20527]
[1625509833930,47.1178,2227.3,2225.9,2.20527]
[1625509834632,2.20527,2226.7,2226.6,2.20527]
[1625509835043,2.20527,2226.7,2226.4,2.20527]
[1625509835583,2.20527,2226.7,2224.8,1.0]
[1625509835683,2.20527,2226.7,2224.7,2.19317046]
[1625509835784,2.20527,2226.7,2224.7,1.29007046]
[1625509835883,2.20527,2226.7,2224.6,1.29011483]
[1625509836184,2.20527,2226.7,2224.7,1.29151024]
[1625509836584,2.20527,2226.3,2226.2,2.20527]
[1625509836684,5.36867,2226.3,2226.2,2.20527]
[1625509837635,3.1634,2226.3,2226.2,2.20527]
[1625509838590,5.36867,2226.3,2226.2,2.20527]
[1625509840105,3.1634,2226.3,2226.2,2.20527]
[1625509840605,5.36867,2226.3,2226.2,2.20527]
[1625509841714,3.1634,2226.3,2226.2,2.20527]
[1625509841815,2.20527,2226.7,2226.2,2.20527]
[1625509842664,2.20527,2226.3,2226.2,2.20527]
[1625509844118,2.20527,2226.7,2226.2,2.20527]
[1625509844618,2.20527,2226.3,2226.2,2.20527]
[1625509847977,2.20527,2226.7,2226.2,2.20527]
[1625509848088,2.20527,2226.7,2226.2,4.46477]
[1625509848631,2.20527,2226.7,2226.6,2.20527]
[1625509849080,1.0,2228.0,2226.6,2.20527]
[1625509849180,15.4932,2228.5,2226.6,2.20527]
[1625509849280,14.1595,2229.1,2226.6,2.20527]
[1625509850242,1.0,2229.0,2226.6,2.20527]
[1625509850688,3.09117,2228.6,2228.3,2.20527]
[1625509851480,3.09117,2228.6,2228.0,2.20527]
[1625509852686,2.20527,2228.1,2228.0,2.20527]
[1625509853036,3.09117,2228.6,2228.0,2.20527]
[1625509853936,3.09117,2228.6,2226.9,1.0]
[1625509853937,6.11477,2228.6,2226.9,1.0]
[1625509854039,11.11477,2228.6,2226.5,15.1329]
[1625509854669,2.20527,2226.9,2226.7,2.20527]
[1625509854789,5.73367,2226.9,2226.7,2.20527]
[1625509856324,5.73367,2226.9,2226.5,2.20527]
[1625509856727,2.20527,2226.6,2226.5,2.20527]
[1625509857174,2.20527,2226.6,2226.4,2.20527]
[1625509857728,2.20527,2226.6,2225.1,16.41127476]
[1625509857827,2.20527,2226.6,2225.1,14.1035]
[1625509858024,2.20527,2226.6,2225.2,0.2292614]
[1625509858679,2.20527,2226.1,2226.0,2.20527]
[1625509858776,1.76628762,2226.1,2226.0,2.20527]
[1625509859178,1.76628762,2226.1,2226.0,2.43487846]
[1625509859930,1.76628762,2226.1,2226.0,2.20527]
[1625509860931,1.76628762,2226.1,2226.0,2.43397364]
[1625509861033,2.20527,2226.3,2226.0,2.43397364]
[1625509861635,2.20527,2226.3,2226.1,0.22906759]
[1625509861835,1.0,2227.7,2226.1,0.22906759]
[1625509861936,0.9029,2230.0,2226.1,0.22906759]
[1625509862034,5.0,2228.3,2226.1,0.22906759]
[1625509862135,5.0,2228.4,2226.1,0.22906759]
[1625509862233,1.0,2228.4,2226.1,0.22906759]
[1625509862334,0.8859,2228.6,2226.1,0.22906759]
[1625509862736,2.20527,2227.3,2227.1,2.20527]
[1625509862941,2.20527,2227.3,2226.9,2.20527]
[1625509863049,2.20527,2227.3,2225.7,1.30418295]
[1625509863142,2.20527,2227.3,2225.5,2.6083659]
[1625509863245,2.20527,2227.3,2225.3,6.06398409]
[1625509863246,2.20527,2227.3,2225.8,0.22889076]
[1625509863444,2.20527,2227.3,2225.4,0.22886332]
[1625509863845,2.20527,2227.3,2225.2,0.22943929]
[1625509864755,2.20527,2226.3,2226.1,2.20527]
[1625509864845,5.45807,2226.3,2226.1,2.20527]
[1625509865050,5.45807,2226.3,2226.2,0.22969326]
[1625509865851,5.45807,2226.3,2226.1,2.20527]
[1625509866048,5.45807,2226.3,2225.9,2.20527]
[1625509866248,5.45807,2226.3,2226.0,0.22949186]
[1625509866571,5.45807,2226.3,2225.1,14.1035]
[1625509866572,5.45807,2226.3,2225.2,0.22990322]
[1625509866749,4.41054,2225.3,2225.2,2.43517322]
[1625509866851,6.89264,2225.3,2225.2,2.43517322]
[1625509867350,2.4821,2225.3,2225.2,2.43517322]
[1625509868303,38.6685,2226.0,2225.2,2.43517322]
[1625509868503,38.6685,2226.0,2225.3,0.23002924]
[1625509868704,40.87377,2226.0,2225.8,2.20527]
[1625509869570,2.20527,2226.0,2225.8,2.20527]
[1625509870721,2.20527,2225.9,2225.8,2.20527]
[1625509870922,2.5563,2226.9,2225.8,2.20527]
[1625509871723,2.5563,2226.9,2225.2,2.20527]
[1625509871925,7.5563,2226.9,2225.2,2.20527]
[1625509872025,7.5563,2226.9,2225.3,0.22864518]
[1625509872378,2.5563,2226.9,2225.3,0.22864518]
[1625509872730,2.20527,2225.8,2225.6,2.20527]
[1625509872831,4.40147,2225.8,2225.6,2.20527]
[1625509874283,4.40147,2225.8,2225.2,2.20527]
[1625509874384,4.40147,2225.8,2224.7,15.2596]
[1625509874582,4.40147,2225.8,2224.8,0.22933002]
[1625509874785,2.20527,2225.0,2224.9,2.20527]
[1625509875036,4.73657,2225.0,2224.9,2.20527]
[1625509875135,3.67200198,2225.0,2224.9,2.43477176]
[1625509875986,2.5313,2225.0,2224.9,2.43477176]
[1625509876083,2.1962,2225.8,2224.9,2.43477176]
[1625509876284,2.1962,2225.8,2225.0,0.22766202]
[1625509876739,2.20527,2225.5,2225.4,2.20527]
[1625509877441,2.20527,2225.5,2224.9,2.20527]
[1625509877637,2.20527,2225.5,2225.0,0.22867599]
[1625509878139,2.1962,2225.8,2225.0,0.22867599]
[1625509878240,0.8984,2226.2,2225.0,0.22867599]
[1625509878742,2.20527,2225.9,2225.6,2.20527]
[1625509878942,4.36847,2225.9,2225.6,2.20527]
[1625509879843,4.36847,2225.9,2225.4,2.20527]
[1625509880745,4.36847,2225.9,2225.8,2.20527]
[1625509881649,2.1632,2225.9,2225.8,2.20527]
[1625509881749,0.8984,2226.2,2225.8,2.20527]
[1625509881951,0.8984,2226.2,2225.4,2.20527]
[1625509882048,3.9827,2226.2,2225.4,2.20527]
[1625509882199,3.9827,2226.2,2224.6,1.30667412]
[1625509882500,3.9827,2226.2,2224.7,0.22654857]
[1625509882848,2.20527,2225.5,2225.4,2.20527]
[1625509882952,4.55187,2225.5,2225.4,2.20527]
[1625509883154,4.55187,2225.5,2225.2,2.20527]
[1625509884808,2.20527,2225.3,2225.2,2.20527]
[1625509885528,2.3466,2225.5,2225.2,2.20527]
[1625509885730,3.9827,2226.2,2225.2,2.20527]
[1625509886843,2.20527,2225.6,2225.5,2.20527]
[1625509888090,3.9827,2226.2,2225.5,2.20527]
[1625509888844,2.20527,2225.9,2225.8,2.20527]
[1625509889495,2.20527,2225.9,2224.9,1.30526632]
[1625509889694,2.20527,2225.9,2225.0,0.2270672]
[1625509889996,2.20527,2225.9,2225.1,0.13307579]
[1625509890450,2.20527,2225.9,2224.9,0.7984658]
[1625509890748,2.20527,2225.9,2225.0,0.22750616]
[1625509890849,2.20527,2225.2,2225.1,2.20527]
[1625509891247,2.20527,2225.2,2225.1,2.3383488]
[1625509891350,2.20527,2225.4,2225.1,2.3383488]
[1625509891600,2.20527,2225.4,2225.2,0.13308187]
[1625509891999,2.20527,2225.4,2225.1,2.20527]
[1625509892352,2.20527,2225.4,2225.2,0.13308404]
[1625509892852,4.41054,2225.4,2225.2,0.13308404]
[1625509893504,2.6417,2225.5,2225.2,0.13308404]
[1625509894257,2.6417,2225.5,2225.1,3.51047989]
[1625509894657,2.6417,2225.5,2225.1,2.20527]
[1625509894857,2.20527,2225.2,2225.1,2.20527]
[1625509895363,2.20527,2225.2,2225.1,2.33835632]
[1625509897275,2.20527,2225.2,2225.1,2.20527]
[1625509898077,2.20527,2225.2,2224.9,2.20527]
[1625509898383,3.11287,2225.2,2224.6,1.31128528]
[1625509898679,3.11287,2225.2,2224.3,1.31183979]
[1625509898881,2.20527,2224.7,2224.6,2.20527]
[1625509898979,5.40027,2224.7,2224.6,2.20527]
[1625509899429,5.40027,2224.7,2224.3,1.31183979]
[1625509900331,5.40027,2224.7,2224.0,2.62473873]
[1625509900332,5.40027,2224.7,2224.1,1.31189171]
[1625509900733,5.40027,2224.7,2224.0,1.31230712]
[1625509900933,2.20527,2224.1,2224.0,1.31230712]
[1625509901032,4.84697,2224.1,2224.0,1.31230712]
[1625509901486,4.84697,2224.1,2224.0,1.44545333]
[1625509902440,4.84697,2224.1,2224.0,0.13314621]
[1625509902989,4.84697,2224.1,2223.9,1.31231622]
[1625509903194,4.84697,2224.1,2223.8,3.51765696]
[1625509904045,4.84697,2224.1,2223.8,1.31238696]
[1625509904245,4.84697,2224.1,2223.7,1.31443139]
[1625509904748,4.84697,2224.1,2223.6,3.52112156]
[1625509904947,2.20527,2223.7,2223.6,3.52112156]
[1625509905550,2.20527,2223.7,2223.6,3.74993041]
[1625509905651,2.6417,2224.1,2223.6,3.88309216]
[1625509905783,2.6417,2224.1,2223.8,1.06529382]
[1625509905850,2.6417,2224.1,2223.6,4.1802937]
[1625509905951,2.6417,2224.1,2223.7,1.4488827]
[1625509906062,3.195,2224.7,2223.7,1.4488827]
[1625509906150,43.465,2224.9,2223.7,1.4488827]
[1625509906356,43.465,2224.9,2223.7,1.31572138]
[1625509906704,43.465,2224.9,2223.6,3.5207275]
[1625509906802,46.3124,2224.9,2223.6,3.5207275]
[1625509906953,2.20527,2224.1,2223.9,2.20527]
[1625509907053,4.92647,2224.1,2223.9,2.20527]
[1625509908155,4.92647,2224.1,2223.6,2.20527]
[1625509909006,2.20527,2223.7,2223.6,2.20527]
[1625509909758,4.92647,2224.1,2223.6,2.20527]
[1625509911009,2.20527,2223.7,2223.6,2.20527]
[1625509911311,4.92647,2224.1,2223.6,2.20527]
[1625509911711,2.20527,2224.1,2223.6,2.20527]
[1625509911823,1.0,2225.4,2223.6,5.34167]
[1625509911918,0.8984,2226.2,2223.6,5.34167]